Workbook

Sheet 1号様式
A1: 第１号様式（第４条関係）
O3: 年 月 日
B5: 大分県ポートセールス実行委員会
B6: 会 長 | F6: 様
H8: 申請者
H9: 住所
H10: 名称
H11: 代表者職・氏名
H14: 大分港貨物集荷等促進対策助成金交付申請書
B16: 大分県貨物集荷等促進対策助成金の交付を受けたいので、同交付要綱第４条の規定に基づき関係書類を添えて申請します。
H18: 記
B20: 1 | C20: 助成対象期間 | G20: 年 月 日 ～ 年 月 日
B22: 2 | C22: 助成金申請額 | F22: 計 | I22: 円
C24: ①条件不利地域からのコンテナ貨物 | K24: ②大在ＣＴで揚げ燻蒸した貨物
C25: 補助対象地域 | D25: 補助対象 | F25: 単価 | G25: 本数 | H25: 助成額 | K25: 必要経費 | M25: 助成率 | N25: 助成額
C26: Ａ | D26: ４０Ｆ実入り | F26: 10000 | M26: 0.5
D27: ２０Ｆ実入り | F27: 8000 | M27: 0.5
C28: Ｂ | D28: ４０Ｆ実入り | F28: 6000 | M28: 0.5
D29: ２０Ｆ実入り | F29: 5000 | K29: 合 計
C30: 合 計 | K30: ※助成額について、必要経費の1/2が10万円を超える場合は10万円になります。
C31: ※補助対象地域は交付要綱第3条①の表「補助対象地域」の区分による
C33: ③リーファーコンテナ貨物（農林水産物のみ）
C34: コンテナ種類 | F34: 本数 | G34: ＴＥＵ 換算 | H34: 計 | I34: 単価 | K34: 助成額 | M34: 貨物の内容
C35: ２０Ｆリーファーコンテナ | I35: 10000
C36: ４０Ｆリーファーコンテナ
C38: ④小口混載貨物（１０㎥または１０㌧まで）
C39: 貨物量 | E39: 単価 | F39: 助成額 ａ （貨物量×単価） | H39: 助成額 ｂ (1TEU 10,000円） | J39: 助成額 （a・ｂの高い方） | L39: 助成額合計
E40: 2000
E41: 2000
E42: 2000
E43: 2000
E44: 2000
C45: ※１ｺﾝﾃﾅ毎にご記入ください。
C46: ※助成額ｂについて、40Fｺﾝﾃﾅの場合は20,000円です。

Sheet 1号自動計算
A1: 第１号様式（第４条関係）
L3: 年 月 日
B5: 大分県ポートセールス実行委員会
B6: 会 長 | F6: 様
H8: 申請者 | R8: ◎作成方法
H9: 住所 | R9: 黄色いセルに必要事項、数値をご入力ください。
H10: 名称 | R10: 入力後、プリントアウトして代表者印を押印のうえ、ご提出ください。
H11: 代表者職・氏名 | R11: コメントが邪魔な場合は、下記のボタンで切り替えてください。
H14: 大分港貨物集荷等促進対策助成金交付申請書
B16: 大分県貨物集荷等促進対策助成金の交付を受けたいので、同交付要綱第４条の規定に基づき関係書類を添えて申請します。
H18: 記
B20: 1 | C20: 助成対象期間 | F20: 平成 年 月 日 | I20: ～ | J20: 平成 年 月 日
R21: （ボタンを左クリックしてください）
B22: 2 | C22: 助成金申請額 | F22: 計 | G22: =H30+N29+K35+L40 -> 0 | I22: 円
C24: ①条件不利地域からのコンテナ貨物 | K24: ②大在ＣＴで揚げ燻蒸した貨物
C25: 補助対象地域 | D25: 補助対象 | F25: 単価 | G25: 本数 | H25: 助成額 | K25: 必要経費 | M25: 助成率 | N25: 助成額
C26: Ａ | D26: ４０Ｆ実入り | F26: 10000 | H26: =F26*G26 -> 0 | M26: 0.5 | N26: =IF(K26>200000,100000,ROUNDDOWN(K26*M26,-3)) -> 0
D27: ２０Ｆ実入り | F27: 8000 | H27: =F27*G27 -> 0 | M27: 0.5 | N27: =IF(K27>200000,100000,ROUNDDOWN(K27*M27,-3)) -> 0
C28: Ｂ | D28: ４０Ｆ実入り | F28: 6000 | H28: =F28*G28 -> 0 | M28: 0.5 | N28: 0
D29: ２０Ｆ実入り | F29: 5000 | H29: 0 | K29: 合 計 | N29: =SUM(N26:O28) -> 0
C30: 合 計 | G30: =SUM(G26:G29) -> 0 | H30: =SUM(H26:I29) -> 0 | K30: ※助成額について、必要経費の1/2が10万円を超える場合は10万円になります。
C31: ※補助対象地域は交付要綱第3条①の表「補助対象地域」の区分による
C33: ③リーファーコンテナ貨物（農林水産物のみ）
C34: コンテナ種類 | F34: 本数 | G34: ＴＥＵ 換算 | H34: 計 | I34: 単価 | K34: 助成額 | M34: 貨物の内容
C35: ２０Ｆリーファーコンテナ | G35: =F35*1 -> 0 | H35: =SUM(G35:G36) -> 0 | I35: 10000 | K35: =H35*I35 -> 0
C36: ４０Ｆリーファーコンテナ | G36: =F36*2 -> 0
C38: ④小口混載貨物（１０㎥または１０㌧まで）
C39: 貨物量 | E39: 単価 | F39: 助成額 ａ （貨物量×単価） | H39: 助成額 ｂ (1TEU 10,000円） | J39: 助成額 （a・ｂの高い方） | L39: 助成額合計
B40: =IF(C40>10,"×","") ->  | E40: 2000 | F40: =C40*E40 -> 0 | J40: =IF(C40>10,0,IF(F40>H40,F40,H40)) -> 0 | L40: =SUM(J40:K44) -> 0 | N40: =IF(C40>10,"助成対象外です！","") -> 
B41: =IF(C41>10,"×","") ->  | E41: 2000 | F41: 0 | J41: =IF(C41>10,0,IF(F41>H41,F41,H41)) -> 0 | N41: =IF(C41>10,"助成対象外です！","") -> 
E42: 2000 | F42: 0 | J42: 0
E43: 2000 | F43: 0 | J43: 0
E44: 2000 | F44: 0 | J44: 0
C45: ※１ｺﾝﾃﾅ毎にご記入ください。
C46: ※助成額ｂについて、40Fｺﾝﾃﾅの場合は20,000円です。

Sheet 1号記入例
A1: 第１号様式（第４条関係） | G1: 記 載 例
O3: 平成○○年 ○月○○日
B5: 大分県ポートセールス実行委員会
B6: 会 長 | D6: ○○ ○○ | F6: 様
H8: 申請者
H9: 住所 | K9: 東京都千代田区○丁目○－○
H10: 名称 | K10: 株式会社 ○○○○○
H11: 代表者職・氏名 | K11: 代表取締役 ○○ ○○
H14: 大分港貨物集荷等促進対策助成金交付申請書
B16: 大分県貨物集荷等促進対策助成金の交付を受けたいので、同交付要綱第４条の規定に基づき関係書類を添えて申請します。
H18: 記
B20: 1 | C20: 助成対象期間 | F20: 平成○○年○月○日 | I20: ～ | J20: 平成○○年○月○○日
B22: 2 | C22: 助成金申請額 | F22: 計 | G22: =H30+N30+K35+L40 -> 506000 | I22: 円
C24: ①条件不利地域からのコンテナ貨物 | K24: ②大在ＣＴで揚げ燻蒸した貨物
C25: 補助対象地域 | D25: 補助対象 | F25: 単価 | G25: 本数 | H25: 助成額 | K25: 必要経費 | M25: 助成率 | N25: 助成額
C26: Ａ | D26: ４０Ｆ実入り | F26: 10000 | G26: 10 | H26: =F26*G26 -> 100000 | K26: 195000 | M26: 0.5 | N26: =IF(K26>200000,100000,ROUNDDOWN(K26*M26,-3)) -> 97000
D27: ２０Ｆ実入り | F27: 8000 | G27: 30 | H27: =F27*G27 -> 240000 | K27: 217500 | M27: 0.5 | N27: =IF(K27>200000,100000,ROUNDDOWN(K27*M27,-3)) -> 100000
C28: Ｂ | D28: ４０Ｆ実入り | F28: 6000 | G28: 5 | H28: =F28*G28 -> 30000 | M28: 0.5 | N28: 0
D29: ２０Ｆ実入り | F29: 5000 | G29: 12 | H29: 60000 | K29: ② 合 計 | N29: =SUM(N25:O28) -> 197000
C30: ① 合 計 | G30: =SUM(G26:G29) -> 57 | H30: =SUM(H26:I29) -> 430000 | K30: ※助成額について、必要経費の1/2が10万円を超える場合は10万円になります。
C31: ※補助対象地域は交付要綱第3条①の表「補助対象地域」の区分による
C33: ③リーファーコンテナ貨物（農林水産物のみ）
C34: コンテナ種類 | F34: 本数 | G34: ＴＥＵ 換算 | H34: 計 | I34: 単価 | K34: 助成額 | M34: 貨物の内容
C35: ２０Ｆリーファーコンテナ | F35: 1 | G35: =F35*1 -> 1 | H35: =SUM(G35:G36) -> 5 | I35: 10000 | K35: =H35*I35 -> 50000 | M35: 大豆、甘藷、冷凍エビ
C36: ４０Ｆリーファーコンテナ | F36: 2 | G36: =F36*2 -> 4
C38: ④小口混載貨物（１０㎥または１０㌧まで）
C39: 貨物量 | E39: 単価 | F39: 助成額 ａ （貨物量×単価） | H39: 助成額 ｂ (1TEU 10,000円） | J39: 助成額 （a・ｂの高い方） | L39: 助成額合計
B40: =IF(C40>10,"×","") ->  | C40: 2 | D40: ㌧ | E40: 2000 | F40: =C40*E40 -> 4000 | H40: 10000 | J40: =IF(C40>10,0,IF(F40>H40,F40,H40)) -> 10000 | L40: =SUM(J40:K44) -> 26000 | N40: =IF(C40>10,"助成対象外です！","") -> 
B41: =IF(C41>10,"×","") ->  | C41: 8 | D41: ㎥ | E41: 2000 | F41: 16000 | H41: 10000 | J41: =IF(C41>10,0,IF(F41>H41,F41,H41)) -> 16000 | N41: =IF(C41>10,"助成対象外です！","") -> 
E42: 2000 | F42: 0 | J42: 0
E43: 2000 | F43: 0 | J43: 0
E44: 2000 | F44: 0 | J44: 0
C45: ※１ｺﾝﾃﾅ毎にご記入ください。
C46: ※助成額ｂについて、40Fｺﾝﾃﾅの場合は20,000円です。

Sheet 2号様式
A1: 第２号様式（第４条関係）
O3: 年 月 日
B5: 大分県ポートセールス実行委員会
B6: 会 長 | F6: 様
H8: 申請者
H9: 住所
H10: 名称
H11: 代表者職・氏名
H14: 大分港貨物集荷等促進対策助成金実績報告書
B16: 年 月～ 年 月にかかる大分港大在コンテナターミナルへの集荷等実績を下記のとおり報告します。
H18: 記
C20: ①条件不利地域からのコンテナ貨物
C21: 月日 | D21: 荷主名 | G21: 輸出 輸入 | H21: 40F 20F | I21: 集荷等地域 （条件不利地域） | L21: ｺﾝﾃﾅ 本数 | M21: 貨物の内容
C22: ／ | G22: 出・入 | H22: 40・20
C23: ／ | G23: 出・入 | H23: 40・20
C24: ／ | G24: 出・入 | H24: 40・20
C25: ／ | G25: 出・入 | H25: 40・20
C26: ／ | G26: 出・入 | H26: 40・20
C28: ②大在ＣＴで揚げ燻蒸した貨物
C29: 月日 | D29: 使用庫 | F29: 荷主名 | I29: 貨物の内容 | L29: ｺﾝﾃﾅ 本数
C30: ／ | D30: A ・ B その他 | L30: 20F × 本 40F × 本
C31: ／ | D31: A ・ B その他 | L31: 20F × 本 40F × 本
C32: ／ | D32: A ・ B その他 | L32: 20F × 本 40F × 本
C34: ③リーファーコンテナ貨物（農林水産物のみ）
C35: 月日 | D35: 荷主名 | G35: 輸出 輸入 | H35: 40F 20F | I35: ｺﾝﾃﾅ 本数 | J35: TEU 換算 | K35: 貨物の内容 | N35: 集荷等地域
C36: ／ | G36: 出・入 | H36: 40・20
C37: ／ | G37: 出・入 | H37: 40・20
C38: ／ | G38: 出・入 | H38: 40・20
C39: ／ | G39: 出・入 | H39: 40・20
C40: ／ | G40: 出・入 | H40: 40・20
C44: ④小口混載貨物（１０㎥または１０㌧まで）
C45: 月日 | D45: 40F 20F | E45: 荷主名 | H45: 貨物量 | J45: 計 | K45: 貨物の内容 | N45: 集荷等地域
C46: ／ | D46: 40 ・ 20 | I46: ㎥・㌧
I47: ㎥・㌧
I48: ㎥・㌧
I49: ㎥・㌧
I50: ㎥・㌧
I51: ㎥・㌧
I52: ㎥・㌧
I53: ㎥・㌧
I54: ㎥・㌧
I55: ㎥・㌧
C56: ／ | D56: 40 ・ 20 | I56: ㎥・㌧
I57: ㎥・㌧
I58: ㎥・㌧
I59: ㎥・㌧
I60: ㎥・㌧
I61: ㎥・㌧
I62: ㎥・㌧
I63: ㎥・㌧
I64: ㎥・㌧
I65: ㎥・㌧
C66: ／ | D66: 40 ・ 20 | I66: ㎥・㌧
I67: ㎥・㌧
I68: ㎥・㌧
I69: ㎥・㌧
I70: ㎥・㌧
I71: ㎥・㌧
I72: ㎥・㌧
I73: ㎥・㌧
I74: ㎥・㌧
I75: ㎥・㌧
C76: ／ | D76: 40 ・ 20 | I76: ㎥・㌧
I77: ㎥・㌧
I78: ㎥・㌧
I79: ㎥・㌧
I80: ㎥・㌧
I81: ㎥・㌧
I82: ㎥・㌧
I83: ㎥・㌧
I84: ㎥・㌧
I85: ㎥・㌧
C86: ／ | D86: 40 ・ 20 | I86: ㎥・㌧
I87: ㎥・㌧
I88: ㎥・㌧
I89: ㎥・㌧
I90: ㎥・㌧
I91: ㎥・㌧
I92: ㎥・㌧
I93: ㎥・㌧
I94: ㎥・㌧
I95: ㎥・㌧
B98: （添付書類）
B99: 1 | C99: 条件不利地域助成、リーファーコンテナ助成、小口混載貨物助成を証明する書類
C100: ・ＢＬ（船荷証券）若しくはそれに代わるもの
C101: ・その他、リーファーコンテナ使用が確認できる書類、混載貨物の数量が確認できる書類・写真など
B102: 2 | C102: 燻蒸庫使用助成を照明する書類
C103: ・燻蒸実施記録表及び写真、消毒（燻蒸）計画書、その他かかった経費がわかるもの等

Sheet 2号記入例
A1: 第２号様式（第４条関係） | H1: 記 載 例
O3: 平成○○年 ○月○○日
B5: 大分県ポートセールス実行委員会
B6: 会長 | D6: ○○ ○○ | F6: 様
H8: 申請者
H9: 住所 | K9: 東京都千代田区○丁目○－○
H10: 名称 | K10: 株式会社 ○○○○○
H11: 代表者職・氏名 | K11: 代表取締役 ○○ ○○
H14: 大分港貨物集荷等促進対策助成金実績報告書
B16: 平成○○年○月～平成○○年○○月にかかる大分港大在コンテナターミナルへの集荷等実績を下記のとおり報告します。
H18: 記
C20: ①条件不利地域からのコンテナ貨物
C21: 月日 | D21: 荷主名 | G21: 輸出 輸入 | H21: 40F 20F | I21: 集荷等地域 （条件不利地域） | L21: ｺﾝﾃﾅ 本数 | M21: 貨物の内容
C22: ６／２０ | D22: ㈱○○○ | G22: 出・入 | H22: 40・20 | I22: 日田市 | L22: 20 | M22: ○○
C23: ７／１５ | D23: （有）○○○ | G23: 出・入 | H23: 40・20 | I23: 中津市、臼杵市 | L23: 22 | M23: ○○、○○
C24: １２／１２ | D24: ○○○○㈱ | G24: 出・入 | H24: 40・20 | I24: 宮崎県、佐伯市 | L24: 15 | M24: ○○○○
C25: ／ | G25: 出・入 | H25: 40・20
C26: ／ | G26: 出・入 | H26: 40・20
C28: ②大在ＣＴで揚げ燻蒸した貨物
C29: 月日 | D29: 使用庫 | F29: 荷主名 | I29: 貨物の内容 | L29: ｺﾝﾃﾅ 本数
C30: １０／３ | D30: A ・ B その他 | F30: ㈱○○○ | I30: ○○○○ | L30: 20F × １ 本 40F × 本
C31: １／２５ | D31: A ・ B その他 | F31: （有）○○○ | I31: ○○○ | L31: 20F × １ 本 40F × 本
C32: ／ | D32: A ・ B その他 | L32: 20F × 本 40F × 本
C34: ③リーファーコンテナ貨物（農林水産物のみ）
C35: 月日 | D35: 荷主名 | G35: 輸出 輸入 | H35: 40F 20F | I35: ｺﾝﾃﾅ 本数 | J35: TEU 換算 | K35: 貨物の内容 | N35: 集荷等地域
C36: ８／２２ | D36: （有）○○○ | G36: 出・入 | H36: 40・20 | I36: 1 | J36: 2 | K36: 甘藷 | N36: 臼杵市
C37: ２／２０ | D37: ○○○○㈱ | G37: 出・入 | H37: 40・20 | I37: 2 | J37: 3 | K37: 大豆、冷凍エビ | N37: 竹田市、熊本県
C38: ／ | G38: 出・入 | H38: 40・20
C39: ／ | G39: 出・入 | H39: 40・20
C40: ／ | G40: 出・入 | H40: 40・20
C44: ④小口混載貨物（１０㎥または１０㌧まで）
C45: 月日 | D45: 40F 20F | E45: 荷主名 | H45: 貨物量 | J45: 計 | K45: 貨物の内容 | N45: 集荷等地域
C46: １１／６ | D46: 40 ・ 20 | E46: ○○商会 | H46: 1 | I46: ㎥・㌧ | J46: 2 | K46: ○○○○ | N46: ○○市
E47: （有）○○ | H47: 1 | I47: ㎥・㌧ | K47: ○○○○ | N47: ○○市
I48: ㎥・㌧
I49: ㎥・㌧
I50: ㎥・㌧
I51: ㎥・㌧
I52: ㎥・㌧
I53: ㎥・㌧
I54: ㎥・㌧
I55: ㎥・㌧
C56: １２／１ | D56: 40 ・ 20 | E56: ○○商会 | H56: 3 | I56: ㎥・㌧ | J56: 8 | K56: ○○○○ | N56: ○○市
E57: （有）○○ | H57: 1 | I57: ㎥・㌧ | K57: ○○○○ | N57: ○○町
E58: ○○組合 | H58: 4 | I58: ㎥・㌧ | K58: ○○○○ | N58: ○○市
I59: ㎥・㌧
I60: ㎥・㌧
I61: ㎥・㌧
I62: ㎥・㌧
I63: ㎥・㌧
I64: ㎥・㌧
I65: ㎥・㌧
C66: ／ | D66: 40 ・ 20 | I66: ㎥・㌧
I67: ㎥・㌧
I68: ㎥・㌧
I69: ㎥・㌧
I70: ㎥・㌧
I71: ㎥・㌧
I72: ㎥・㌧
I73: ㎥・㌧
I74: ㎥・㌧
I75: ㎥・㌧
C76: ／ | D76: 40 ・ 20 | I76: ㎥・㌧
I77: ㎥・㌧
I78: ㎥・㌧
I79: ㎥・㌧
I80: ㎥・㌧
I81: ㎥・㌧
I82: ㎥・㌧
I83: ㎥・㌧
I84: ㎥・㌧
I85: ㎥・㌧
C86: ／ | D86: 40 ・ 20 | I86: ㎥・㌧
I87: ㎥・㌧
I88: ㎥・㌧
I89: ㎥・㌧
I90: ㎥・㌧
I91: ㎥・㌧
I92: ㎥・㌧
I93: ㎥・㌧
I94: ㎥・㌧
I95: ㎥・㌧
B98: （添付書類）
B99: 1 | C99: 条件不利地域助成、リーファーコンテナ助成、小口混載貨物助成を証明する書類
C100: ・ＢＬ（船荷証券）若しくはそれに代わるもの
C101: ・その他、リーファーコンテナ使用が確認できる書類、混載貨物の数量が確認できる書類・写真など
B102: 2 | C102: 燻蒸庫使用助成を照明する書類
C103: ・燻蒸実施記録表及び写真、消毒（燻蒸）計画書、その他かかった経費がわかるもの等

Sheet ４号様式
A1: 第４号様式（第６条関係）
O3: 年 月 日
B5: 大分県ポートセールス実行委員会
B6: 会 長 | F6: 様
H8: 申請者
H9: 住所
H10: 名称
H11: 代表者職・氏名
H14: 大分港貨物集荷等促進対策助成金交付請求書
B16: 大分県貨物集荷等促進対策助成金の交付を受けたいので、同交付要綱第６条の規定に基づき請求します。
H18: 記
B20: 1 | C20: 請 求 額 | F20: 金 | I20: 円
B22: 2 | C22: 振込先口座
C23: 金融機関名 | F23: 本支店名 | H23: 預金の 種類 | I23: 口座番号 | L23: 口座名義人
H24: 普通 当座 | L24: （ﾌﾘｶﾞﾅ）
J43: 担当者
J45: 連絡先

Sheet Sheet2

Sheet Sheet3
